{"text_format":"2","workbook":"xlsx","n_sheets":1,"sheets":["Feuil1"],"not_rendered":{"charts":0,"images":0,"macros":0,"external_links":0,"defined_names":0,"comments":0,"pivot_tables":0},"unopened":[],"bounds":{"document_bytes":16777216,"sheet_cells":100000,"run_cost":"one","rows_first":2000,"rows_last":500,"rows_between":2000,"halvings":0,"cell_chars":16384,"cell_head_chars":4096},"cells_cut":0,"cells_raw":0,"read":"whole","date_system":"1900"}

{"sheet":"Feuil1","index":0,"n_rows":93,"n_cols":16,"rows_kept":93,"cut":false,"hidden":false,"merged":[[60,6,60,15],[42,0,43,4],[45,6,45,15],[53,6,53,15],[1,0,1,4],[9,6,9,15],[16,6,16,15],[22,0,23,4],[2,6,2,15],[23,6,23,15],[37,6,37,15],[30,6,30,15],[2,0,3,4],[80,0,81,4],[86,0,87,4],[90,0,91,4],[70,0,71,4],[62,0,63,4]]}
[]
["Coupe FLA du FOOT à 11 Lundi 2025-2026"]
["1ère journée -  Lundi 22/09 au mercredi 24/09 ",{"$nulls":5},"Groupe A"]
[{"$nulls":6},"Team ","Points","J","G","N","P","Bp","Bc","+/-","Forfait "]
[null,"CARVA FC","4-1","OLYMPULCO FC","Lundi 22/09 - Choisy 3 à 21h00",null,"MACCABI SARCELLES",8,3,2,0,1,7,5,{"$f":"+M5-N5","v":2},1]
[null,"FC CORCORAN'S ","2-3","CFJ","Lundi 22/09 - Tremblay 6 à 21h00",null,"INVALIDES FC B",7,3,1,1,1,7,6,{"$f":"M6-N6","v":1}]
[null,"DYNAMO NAVIGO","1-8","TF1 SPORTS AS A","Lundi 22/09 - Racine à 20h30",null,"TANCHESTER UNITED",7,3,1,1,1,4,6,{"$f":"+M7-N7","v":-2}]
[null,"ASED","0-3","LES TOILES ROUGES","Lundi 22/09 - René DEWERPE à 20h15 ",null,"ETOILE ",6,3,1,0,2,6,7,{"$f":"+M8-N8","v":-1}]
[null,"SMOLL PASSY FC","3-2","USIP","Lundi 22/09 - Mandela à 21h00"]
[null,"JUMP","6-4","AC JUNIA PARIS C","Lundi 22/09 - Frederic Lanrenay à 20h15 ",null,"Groupe B"]
[null,"OCCITAN FC A","2-0","PANAMPRIDE FC A","Lundi 22/09 - Max Roussié à 20h45",null,"Team ","Points","J","G","N","P","Bp","Bc","+/-","Forfait "]
[null,"USFEN AULNAY","1-6","ASTON PHOENIX","Lundi 22/09 - Stade Belval à 20h30 ",null,"CFJ",12,3,3,0,0,10,4,{"$f":"+M12-N12","v":6}]
[null,"NAT ","4-5","NOUVELLE ECOLE","Lundi 22/09 stade de Massy à 21h00",null,"ESPRIT SPORT FC",9,3,2,0,1,9,3,{"$f":"+M13-N13","v":6}]
[null,"MACCABI SARCELLES","0F-3","ETOILE ","Mardi 23/09 - Léo Lagrange à 20h00",null,"FC CORCORAN'S ",6,3,1,0,2,4,4,{"$f":"+M14-N14","v":0}]
[null,"TANCHESTER UNITED","1-1","INVALIDES FC B","Mardi 23/09 - Bobigny 3 à 20h30",null,"INTER MITTENT FC",3,3,0,0,3,0,12,{"$f":"+M15-N15","v":-12}]
[null,"INTER MITTENT FC","0-6","ESPRIT SPORT FC","Mardi 23/09 - Tremblay 6 à 21h00"]
[null,"BOCA SENIORS","0-4","PANAM KINGS","Mardi 23/09 - Mandela à 21h00",null,"Groupe C"]
[null,"JMCF","3-0f","NERAZZURRI","Mardi 23/09 - Lenglen 3 à 19h30",null,"Team ","Points","J","G","N","P","Bp","Bc","+/-","Forfait "]
[null,"ES VINCENNES A","1-1","INTER MILAN DU SPECTACLE","Mercredi 24/09 - Tremblay 6 à 21h00",null,"CARVA FC",12,3,3,0,0,14,2,{"$f":"+M19-N19","v":12}]
[null,"LE TIR ASCBB C","9-2","SPECTRES","Mercredi 24/09 - Mandela à 21h00",null,"OLYMPULCO FC",7,3,1,1,1,7,8,{"$f":"+M20-N20","v":-1}]
[null,"MACCABI VV",null,"PALAIS-BARREAU DE PARIS","Reporté au 27/10",null,"MACCABI VV",6,3,1,0,2,7,10,{"$f":"+M21-N21","v":-3}]
[null,"AS FIVE 94",null,"BETSABE","Reporté au 27/10",null,"PALAIS-BARREAU DE PARIS",4,3,0,1,2,3,11,{"$f":"+M22-N22","v":-8}]
["2ème journée -  Lundi 29/09 au mercredi 01/10 "]
[{"$nulls":6},"Groupe D"]
[null,"CFJ","3-2","ESPRIT SPORT FC","Lundi 29/09 - Max Roussié à 20h45",null,"Team ","Points","J","G","N","P","Bp","Bc","+/-","Forfait "]
[null,"MACCABI VV","0-4","CARVA FC","Lundi 29/09 - Tremblay 6 à 21h00",null,"TF1 SPORTS AS A",12,3,3,0,0,22,2,{"$f":"+M26-N26","v":20}]
[null,"OLYMPULCO FC","1-1","PALAIS-BARREAU DE PARIS","Lundi 29/09 - Mandela à 21h00",null,"PANAM KINGS",9,3,2,0,1,10,6,{"$f":"+M27-N27","v":4}]
[null,"ASED","2-6","SPECTRES","Lundi 29/09 - René DEWERPE à 20h15 ",null,"DYNAMO NAVIGO",6,3,1,0,2,9,15,{"$f":"+M28-N28","v":-6}]
[null,"JUMP","1-1","USIP","Lundi 29/09 - Frederic Lanrenay à 20h15 ",null,"BOCA SENIORS",3,3,0,0,3,2,20,{"$f":"+M29-N29","v":-18}]
[null,"PANAMPRIDE FC A","0-3","ASTON PHOENIX","Lundi 29/09 - Choisy 3 à 21h00"]
[null,"NAT ","3-3","BETSABE","Lundi 29/09 Massy à 21h00",null,"Groupe E"]
[null,"NOUVELLE ECOLE","3-4","AS FIVE 94","Mardi 30/09 - Tremblay n°9 à 21h ",null,"Team ","Points","J","G","N","P","Bp","Bc","+/-","Forfait "]
[null,"MACCABI SARCELLES","4-1","TANCHESTER UNITED","Mardi 30/09 - Léo Lagrange à 20h00",null,"INTER MILAN DU SPECTACLE",10,3,2,1,0,10,5,0]
[null,"ETOILE ","2-4","INVALIDES FC B","Mardi 30/09 - Lenglen 3 à 19h30",null,"JMCF",7,3,1,1,1,5,6,{"$f":"+M34-N34","v":-1}]
[null,"INTER MITTENT FC","0-2","FC CORCORAN'S ","Mardi 30/09 - Tremblay n°6 à 21h00",null,"ES VINCENNES A",6,3,0,3,0,5,5,{"$f":"+M35-N35","v":0}]
[null,"BOCA SENIORS","1-6","DYNAMO NAVIGO","Mardi 30/09 - Mandela à 21h00",null,"NERAZZURRI",3,3,0,1,2,6,10,{"$f":"+M36-N36","v":-4},1]
[null,"TF1 SPORTS AS A","4-0","PANAM KINGS","Mardi 30/09 - Bobigny 3 à 20h30"]
[null,"NERAZZURRI","3-4","INTER MILAN DU SPECTACLE","Mardi 30/09 - Choisy 23 à 21h00",null,"Groupe F"]
[null,"ES VINCENNES A","1-1","JMCF","Mercredi 01/10 - Tremblay 6 à 21h00",null,"Team ","Points","J","G","N","P","Bp","Bc","+/-","Forfait "]
[null,"LE TIR ASCBB C","5-1","LES TOILES ROUGES","Mercredi 01/10 - Mandela à 21h00",null,"LE TIR ASCBB C",9,3,2,0,1,16,6,{"$f":"+M40-N40","v":10}]
[null,"AC JUNIA PARIS C","5-0","SMOLL PASSY FC","Mercredi 01/10 - Bobigny 2 à 19h30",null,"LES TOILES ROUGES",9,3,2,0,1,6,6,{"$f":"+M41-N41","v":0}]
[null,"USFEN AULNAY",null,"OCCITAN FC A","Reporté au 27/10",null,"SPECTRES",6,3,1,0,2,9,13,{"$f":"+M42-N42","v":-4}]
["3ème journée -  Lundi 06/10 au mercredi 08/10 ",{"$nulls":5},"ASED",6,3,1,0,2,5,11,{"$f":"+M43-N43","v":-6}]
[]
[null,"CFJ","4-0","INTER MITTENT FC","Lundi 06/10 - Max Roussié à 20h45"]
[null,"CARVA FC","6-1","PALAIS-BARREAU DE PARIS","Lundi 06/10 - Choisy 3 à 21h00",null,"Groupe G"]
[null,"NAT ","1-6","AS FIVE 94","Lundi 06/10 Massy à 21h00",null,"Team ","Points","J","G","N","P","Bp","Bc","+/-","Forfait "]
[null,"USFEN AULNAY ","0-2","PANAMPRIDE FC A","Lundi 06/10 - Stade Belval à 20h30 ",null,"AC JUNIA PARIS C",9,3,2,0,1,12,7,{"$f":"+M48-N48","v":5}]
[null,"LES TOILES ROUGES","2-1","SPECTRES","Lundi 06/10 - Mandela à 21h00",null,"JUMP",8,3,1,2,0,10,8,{"$f":"+M49-N49","v":2}]
[null,"ASED","3-2","LE TIR ASCBB C","Lundi 06/10 - René DEWERPE à 20h15 ",null,"SMOLL PASSY FC",7,3,1,1,1,6,10,{"$f":"+M50-N50","v":-4}]
[null,"JUMP","3-3","SMOLL PASSY FC","Lundi 06/10 - Frederic Lanrenay à 20h15 ",null,"USIP",4,3,0,1,2,4,7,{"$f":"+M51-N51","v":-3}]
[null,"TF1 SPORTS AS A","10-1","BOCA SENIORS","Lundi 06/10 - Racine à 20h30"]
[null,"JMCF","1-5","INTER MILAN DU SPECTACLE","Lundi 06/10- Tremblay 6 à 21h00"]
[null,"MACCABI SARCELLES",null,"INVALIDES FC B","Reporté au 28/10",null,"Groupe H"]
[null,"FC CORCORAN'S ","0-1","ESPRIT SPORT FC","Mardi 07/10- Choisy 23 à 21h00",null,"Team ","Points","J","G","N","P","Bp","Bc","+/-","Forfait "]
[null,"USIP","1-3","AC JUNIA PARIS C","Mardi 07/10 - Bobigny 3 à 20h30",null,"ASTON PHOENIX",12,3,3,0,0,12,3,{"$f":"+M56-N56","v":9}]
[null,"OCCITAN FC A","2-3","ASTON PHOENIX","Mardi 07/10 - Mandela à 21h00",null,"OCCITAN FC A",9,3,2,0,1,8,5,{"$f":"+M57-N57","v":3}]
[null,"DYNAMO NAVIGO","2-6","PANAM KINGS","Mardi 07/10 -  Tremblay 6 à 21h00",null,"PANAMPRIDE FC A",6,3,1,0,2,2,5,{"$f":"+M58-N58","v":-3}]
[null,"BETSABE","1-2","NOUVELLE ECOLE","Mardi 07/10 - Tremblay n°9 à 21h00",null,"USFEN AULNAY",3,3,0,0,3,3,12,{"$f":"+M59-N59","v":-9}]
[null,"ETOILE ","1-3","TANCHESTER UNITED","Mercredi 08/10 - Ile de puteaux (Terrain n°2) à 20h30"]
[null,"NERAZZURRI","3-3","ES VINCENNES A","Mercredi 08/10 - Tremblay 6 à 21h00",null,"Groupe I"]
[null,"OLYMPULCO FC","5-3","MACCABI VV","Mercredi 08/10 - Mandela à 21h00",null,"Team ","Points","J","G","N","P","Bp","Bc","+/-","Forfait "]
["Tour de cadrage - du Lundi 27/10 au Mercredi 29/10 ",{"$nulls":5},"AS FIVE 94",12,3,3,0,0,13,4,{"$f":"+M63-N63","v":9}]
[{"$nulls":6},"NOUVELLE ECOLE FC",9,3,2,0,1,10,9,{"$f":"+M64-N64","v":1}]
[55,"PANAM KINGS","3-3 4p-3p","JUMP","Lundi 27/10 - Mandela à 21h00",null,"NAT FC ",4,3,0,1,2,8,14,{"$f":"+M65-N65","v":-6}]
[56,"ESPRIT SPORT","2-2 4p-5p","JMCF ","Lundi 27/10- Tremblay  N°6 à 21h00",null,"BETSABE FC ",3,3,0,1,2,4,8,{"$f":"+M66-N66","v":-4},1]
[null,"AS FIVE 94","3-0F","BETSABE","Mardi 28/10- Tremblay  N°9 à 21h00"]
[null,"MACCABI SARCELLES","3-2","INVALIDES FC B","Mardi 28/10 - Léo Lagrange à 20h00"]
[null,"USFEN AULNAY","2-4","OCCITAN FC A","Mardi 28/10 à 20h30 à Bobigny N°3"]
[null,"MACCABI VV","4-1","PALAIS-BARREAU DE PARIS","Mardi 28/10 Tremblay N°6 à 21h00 "]
["Huitième de finale - Lundi 16/02 au mercredi 18/02 "]
[]
[58,"INVALIDES FC B",null,"AC JUNIA PARIS C","Lundi 16/02 - Choisy 3 à 21h00"]
[60,"JMCF",null,"AS FIVE 94","Lundi 16/02- Tremblay  N°6 à 21h00"]
[61,"NOUVELLE ECOLE",null,"ASTON PHOENIX","Lundi 16/02 - stade Marcel Cerdan à 20h00"]
[62,"CFJ",null,"LES TOILES ROUGES","Lundi 16/02 - Max Roussié à 20h45"]
[57,"OCCITAN FC A",null,"CARVA FC","Mardi 17/02 - Mandela à 21h00"]
[63,"MACCABI SARCELLES",null,"PANAM KINGS","Mardi 17/02 - Léo Lagrange à 20h00"]
[64,"INTER MILAN DU SPECTACLE ",null,"OLYMPULCO FC","Mardi 17/02 à 19h30 à Lenglen N°3"]
[59,"LE TIR ASCBB C",null,"TF1 SPORTS AS A","Mercredi 18/02 - Mandela à 21h00"]
["Quart de finale -  Lundi 16/03 au mercredi 18/03"]
[]
[67,"Vainqueur Match N°57",null,"Vainqueur Match N°61","Lundi 16/03- Tremblay  N°6 à 21h00"]
[65,"Vainqueur Match N°64",null,"Vainqueur Match N°58","Mardi 17/03 - Mandela à 21h00"]
[68,"Vainqueur Match N°63",null,"Vainqueur Match N°59","Mardi 17/03- Tremblay  N°6 à 21h00"]
[66,"Vainqueur Match N°60",null,"Vainqueur Match N°62","Mercredi 18/03 - Mandela à 21h00"]
["Demie finale - Lundi 13/04 au mercredi 15/04"]
[]
[69,"Vainqueur Match N°66",null,"Vainqueur Match N°68","Lundi 13/04 - Mandela à 21h00"]
[70,"Vainqueur Match N°67",null,"Vainqueur Match N°65","Lundi 13/04- Tremblay  N°6 à 21h00"]
["Finale -  "]
[]
[71,"Vainqueur Match N°69",null,"Vainqueur Match N°70","A definir"]